fUST/lending_fUST_20240116
["ID","MTS","AMOUNT","RATE_DAILY","PERIOD"]
[311705790,1705344641416,-4961.14,0.00030136,2]
[311705791,1705344641426,-500.0,0.00030136,2]
[311705792,1705344641435,-2205.28,0.00030136,2]
[311705793,1705344641444,-500.0,0.00030136,2]
[311705794,1705344641454,-5301.62,0.00030136,2]
[311705795,1705344641465,-500.0,0.00030136,2]
[311705796,1705344641474,-500.0,0.00030136,2]
[311705797,1705344641484,-583.94,0.00030136,2]
[311705798,1705344641493,-501.23384362,0.00030136,2]
[311705799,1705344641502,-500.0,0.00030136,2]
[311705800,1705344641513,-500.0,0.00030136,2]
[311705801,1705344641523,-500.0,0.00030136,2]
[311705802,1705344641533,-464.06891811,0.00030136,2]
[311705803,1705344641543,-611.73,0.00030136,2]
[311705804,1705344641552,-504.07303375,0.00030136,2]
[311705805,1705344641561,-500.0,0.00030136,2]
[311705807,1705344641570,-19044.57,0.00030136,2]
[311705808,1705344641580,-11721.4,0.00030136,2]
[311705810,1705344641590,-1624.22,0.00030136,2]
[311705812,1705344641599,-500.0,0.00030136,2]
[311705813,1705344641608,-500.0,0.00030136,2]
[311705815,1705344641618,-500.0,0.00030136,2]
[311705817,1705344641627,-115.48485012,0.00030136,2]
[311705819,1705344641639,-384.51514988,0.00030136,2]
[311705821,1705344641649,-439.11942681,0.00030136,2]
[311705823,1705344641660,-62.44642155,0.00030136,2]
[311705824,1705344641669,-326.84939381,0.00030136,2]
[311705832,1705344641799,-385.45060619,0.00030136,2]
[311705833,1705344641809,-500.0,0.00030136,2]
[311705834,1705344641818,-711.34764443,0.00030136,2]
[311705836,1705344641830,-3605.14235557,0.00030136,2]
[311705838,1705344641839,-553.34,0.00030136,2]
[311705840,1705344641849,-1096.25,0.00030136,2]
[311705841,1705344641863,-500.0,0.00030136,2]
[311705843,1705344641872,-500.0,0.00030136,2]
[311705845,1705344641882,-500.0,0.00030136,2]
[311705847,1705344641890,-500.0,0.00030136,2]
[311705849,1705344641899,-500.0,0.00030136,2]
[311705851,1705344641909,-520.05672766,0.00030136,2]
[311705853,1705344641918,-500.0,0.00030136,2]
[311705855,1705344641926,-500.0,0.00030136,2]
[311705857,1705344641935,-181.0274032,0.00030136,2]
[311705859,1705344641944,-504.46218806,0.00030136,2]
[311705861,1705344641954,-1191.76,0.00030136,2]
[311705862,1705344641963,-500.0,0.00030136,2]
[311705864,1705344641972,-338.37665592,0.00030136,2]
[311705866,1705344641981,-500.0,0.00030136,2]
[311705869,1705344641991,-500.0,0.00030136,2]
[311705870,1705344642000,-500.0,0.00030136,2]
[311705872,1705344642009,-500.0,0.00030136,2]
[311705874,1705344642018,-3289.01,0.00030136,2]
[311705876,1705344642028,-527.88068403,0.00030136,2]
[311705878,1705344642037,-500.0,0.00030136,2]
[311705880,1705344642047,-500.0,0.00030136,2]
[311705882,1705344642056,-500.0,0.00030136,2]
[311705884,1705344642065,-401.60196883,0.00030136,2]
[311705886,1705344642074,-506.56848822,0.00030136,2]
[311705887,1705344642084,-501.13132414,0.00030136,2]
[311705889,1705344642093,-4004.65,0.00030136,2]
[311705892,1705344642103,-500.0,0.00030136,2]
[311705893,1705344642112,-500.0,0.00030136,2]
[311705895,1705344642122,-500.0,0.00030136,2]
[311705897,1705344642132,-162.4916908,0.00030136,2]
[311705900,1705344642142,-500.0,0.00030136,2]
[311705902,1705344642150,-2177.43,0.00030136,2]
[311705904,1705344642160,-855.61,0.00030136,2]
[311705906,1705344642170,-500.0,0.00030136,2]
[311705908,1705344642179,-678.01,0.00030136,2]
[311705909,1705344642188,-502.68498114,0.00030136,2]
[311705911,1705344642197,-500.0,0.00030136,2]
[311705914,1705344642206,-529.53925468,0.00030136,2]
[311705915,1705344642217,-263.46749869,0.00030136,2]
[311705917,1705344642226,-500.0,0.00030136,2]
[311705919,1705344642235,-429.10569862,0.00030136,2]
[311705921,1705344642244,-500.0,0.00030136,2]
[311705923,1705344642253,-500.0,0.00030136,2]
[311705925,1705344642262,-500.0,0.00030136,2]
[311705927,1705344642271,-1092.34,0.00030136,2]
[311705929,1705344642284,-500.0,0.00030136,2]
[311705931,1705344642293,-500.0,0.00030136,2]
[311705933,1705344642302,-614.64,0.00030136,2]
[311705935,1705344642312,-500.0,0.00030136,2]
[311705937,1705344642322,-500.0,0.00030136,2]
[311705939,1705344642334,-658.85,0.00030136,2]
[311705941,1705344642344,-501.46367513,0.00030136,2]
[311705943,1705344642354,-500.0,0.00030136,2]
[311705946,1705344642363,-500.0,0.00030136,2]
[311705948,1705344642372,-947.0,0.00030136,2]
[311705949,1705344642382,-500.0,0.00030136,2]
[311705952,1705344642391,-373.6481171,0.00030136,2]
[311705954,1705344642400,-500.0,0.00030136,2]
[311705955,1705344642410,-509.56210125,0.00030136,2]
[311705957,1705344642419,-153.0,0.000302,2]
[311705960,1705344642428,-153.0,0.000302,2]
[311705961,1705344642438,-153.0,0.000302,2]
[311705963,1705344642447,-153.0,0.000302,2]
[311705965,1705344642456,-153.0,0.000302,2]
[311705968,1705344642467,-568.53620377,0.00030245,2]
[311705969,1705344642476,-165.48245715,0.00030409,4]
[311705972,1705344642486,-605.84247245,0.00030409,2]
[311705974,1705344642496,-500.0,0.00030409,5]
[311705976,1705344642505,-496.66696298,0.0003041,2]
[311705977,1705344642514,-500.0,0.0003041,2]
[311705979,1705344642523,-597.46,0.0003041,2]
[311705981,1705344642533,-500.0,0.0003041,2]
[311705983,1705344642543,-536.76,0.0003041,2]
[311705985,1705344642552,-500.0,0.0003041,2]
[311705987,1705344642562,-563.73,0.0003041,2]
[311705988,1705344642571,-500.0,0.0003041,2]
[311705989,1705344642580,-153.49030981,0.0003041,2]
[311705990,1705344642589,-632.99695232,0.0003041,2]
[311705991,1705344642599,-500.0,0.0003041,2]
[311705992,1705344642609,-500.0,0.0003041,2]
[311705993,1705344642618,-539.44145748,0.0003041,2]
[311705994,1705344642628,-500.0,0.0003041,2]
[311705995,1705344642637,-674.79,0.0003041,2]
[311705996,1705344642647,-168.37689233,0.0003041,2]
[311705997,1705344642656,-500.0,0.0003041,2]
[311705998,1705344642665,-500.0,0.0003041,2]
[311705999,1705344642674,-70.09727896,0.0003041,2]
[311706000,1705344642687,-429.90272104,0.0003041,2]
[311706001,1705344642696,-500.0,0.0003041,2]
[311706002,1705344642705,-500.0,0.0003041,2]
[311706003,1705344642718,-500.0,0.0003041,2]
[311706005,1705344642726,-500.0,0.0003041,2]
[311706007,1705344642735,-1783.75,0.0003041,2]
[311706009,1705344642744,-500.0,0.0003041,2]
[311706010,1705344642753,-500.0,0.0003041,2]
[311706011,1705344642762,-500.0,0.0003041,2]
[311706013,1705344642771,-500.0,0.0003041,2]
[311706014,1705344642779,-870.97,0.0003041,2]
[311706015,1705344642788,-150.0,0.0003041,2]
[311706016,1705344642798,-153.67876609,0.0003041,2]
[311706018,1705344642807,-500.0,0.0003041,2]
[311706020,1705344642816,-500.0,0.0003041,2]
[311706022,1705344642825,-558.32,0.0003041,2]
[311706025,1705344642834,-580.72,0.0003041,2]
[311706027,1705344642843,-500.0,0.0003041,2]
[311706028,1705344642852,-1082.47,0.0003041,2]
[311706030,1705344642863,-500.0,0.0003041,2]
[311706032,1705344642872,-500.0,0.0003041,2]
[311706034,1705344642882,-500.0,0.0003041,2]
[311706036,1705344642891,-500.0,0.0003041,2]
[311706037,1705344642900,-628.21,0.0003041,2]
[311706038,1705344642908,-500.0,0.0003041,2]
[311706039,1705344642917,-500.0,0.0003041,2]
[311706040,1705344642926,-500.0,0.0003041,2]
[311706041,1705344642935,-500.0,0.0003041,2]
[311706042,1705344642944,-819.24,0.0003041,2]
[311706043,1705344642953,-504.47013511,0.0003041,2]
[311706044,1705344642965,-500.0,0.0003041,2]
[311706046,1705344642974,-500.0,0.0003041,2]
[311706047,1705344642983,-500.0,0.0003041,2]
[311706050,1705344642992,-500.0,0.0003041,2]
[311706053,1705344643000,-500.0,0.0003041,2]
[311706055,1705344643009,-500.0,0.0003041,2]
[311706058,1705344643019,-500.0,0.0003041,2]
[311706060,1705344643028,-500.0,0.0003041,2]
[311706062,1705344643037,-730.7,0.0003041,2]
[311706064,1705344643047,-500.0,0.0003041,2]
[311706066,1705344643056,-733.17,0.0003041,2]
[311706068,1705344643066,-2278.62,0.0003041,2]
[311706070,1705344643075,-500.0,0.0003041,2]
[311706071,1705344643084,-500.0,0.0003041,2]
[311706072,1705344643093,-500.0,0.0003041,2]
[311706073,1705344643102,-500.0,0.0003041,2]
[311706075,1705344643112,-552.27802625,0.0003041,2]
[311706076,1705344643121,-1055.08,0.0003041,2]
[311706077,1705344643130,-500.0,0.0003041,2]
[311706078,1705344643139,-953.62,0.0003041,2]
[311706079,1705344643148,-500.0,0.0003041,2]
[311706080,1705344643157,-2325.04,0.0003041,2]
[311706081,1705344643167,-500.0,0.0003041,2]
[311706082,1705344643177,-500.0,0.0003041,2]
[311706083,1705344643190,-4961.14,0.0003041,2]
[311706084,1705344643199,-500.0,0.0003041,2]
[311706085,1705344643209,-2205.28,0.0003041,2]
[311706086,1705344643222,-1342.58035718,0.0003041,2]
[311706168,1705344646391,-435.34359155,0.0003,2]
[311706169,1705344646745,-398.26640845,0.0003,2]
[311706170,1705344646755,-500.0,0.00030136,2]
[311706171,1705344646765,-500.0,0.00030136,2]
[311706172,1705344646774,-1740.12,0.00030136,2]
[311706173,1705344646783,-669.8,0.00030136,2]
[311706174,1705344646793,-500.95051049,0.00030136,2]
[311706175,1705344646802,-500.0,0.00030136,2]
[311706176,1705344646811,-500.0,0.00030136,2]
[311706177,1705344646821,-263.23548355,0.00030136,2]
[311706178,1705344646831,-4763.41,0.00030136,2]
[311706179,1705344646840,-1362.55904077,0.0003041,2]
[311706236,1705344857598,-155.0,0.00027265,4]
[311706237,1705344857622,-158.11687988,0.00027266,2]
[311706238,1705344857642,-1014.11617907,0.00027366,2]
[311706239,1705344857662,-164.89328971,0.00027614,2]
[311706240,1705344857683,-720.20964514,0.0002831,2]
[311706241,1705344857704,-3649.8510312,0.00028337,2]
[311706242,1705344857723,-2927.790761,0.00028726,2]
[311706243,1705344857743,-166.1472705,0.00028872,2]
[311706244,1705344857762,-308.96617009,0.000291,2]
[311706245,1705344857786,-266.18339942,0.000291,2]
[311706246,1705344857805,-900.59678191,0.0003,2]
[311706247,1705344857824,-166.59677014,0.0003,2]
[311706248,1705344857844,-297.8809135,0.0003,4]
[311706249,1705344857863,-29665.65090844,0.0003,2]
[311706254,1705344922070,-155.0,0.00026998,4]
[311706255,1705344922094,-166.666666,0.0002858,2]
[311706256,1705344922116,-166.666666,0.00029554,2]
[311706257,1705344922137,-28404.666668,0.0002979,7]
[311706628,1705345838525,-154.98450155,0.00026896,4]
[311706631,1705345838535,-143.66308016,0.00026897,2]
[311706637,1705345838582,-15.96860548,0.00026897,2]
[311706639,1705345838592,-1577.23828043,0.00028033,2]
[311706641,1705345838601,-24900.0,0.00028034,2]
[311706643,1705345838610,-166.666666,0.00028143,2]
[311706645,1705345838620,-224.322056,0.00028226,2]
[311706646,1705345838629,-436.48813636,0.00028299,2]
[311706648,1705345838639,-480.13976342,0.0002831,2]
[311706650,1705345838648,-805.8217687,0.00029,2]
[311706652,1705345838658,-198.8577961,0.00029315,2]
[311706654,1705345838667,-166.666666,0.00029422,2]
[311706656,1705345838676,-198.8577961,0.00029578,2]
[311706658,1705345838686,-198.8577961,0.00029578,2]
[311706660,1705345838695,-198.8577961,0.00029578,2]
[311706662,1705345838704,-400.0241532,0.00029578,2]
[311706664,1705345838713,-198.8577961,0.00029678,2]
[311706666,1705345838722,-198.8577961,0.00029678,2]
[311706668,1705345838732,-159.63168564,0.0002969,2]
[311706670,1705345838741,-1018.6437214,0.00029779,2]
[311706672,1705345838750,-1150.92292887,0.00029779,2]
[311706674,1705345838759,-4221.59,0.0002978,3]
[311706676,1705345838769,-8050.29,0.0002978,3]
[311706677,1705345838778,-6708.58,0.0002978,3]
[311706678,1705345838788,-470.04658801,0.00029788,2]
[311706679,1705345838797,-601.48603607,0.00029789,2]
[311706680,1705345838807,-500.0,0.00029789,2]
[311706681,1705345838817,-20909.75194374,0.0002979,7]
[311706682,1705345838827,-3316.84809972,0.0002979,2]
[311706683,1705345838837,-53144.80706043,0.0002979,7]
[311706684,1705345838846,-156.80579131,0.00029868,2]
[311706685,1705345838855,-156.80579129,0.00029879,2]
[311706686,1705345838865,-156.80579129,0.00029889,2]
[311706687,1705345838874,-238.18235332,0.000299,3]
[311706688,1705345838883,-404.50736868,0.000299,2]
[311706689,1705345838894,-260076.48959498,0.000299,2]
[311706690,1705345838903,-156.80579129,0.000299,2]
[311706691,1705345838912,-155.78668595,0.00029968,2]
[311706693,1705345838922,-5579.51870927,0.00029998,2]
[311706695,1705345838930,-4427.47464918,0.00029998,2]
[311706697,1705345838939,-721.83907828,0.00029998,2]
[311706699,1705345838949,-155.35552222,0.00029998,2]
[311706701,1705345838959,-178.22448375,0.00029998,2]
[311706703,1705345838968,-334.8362529,0.00029998,2]
[311706705,1705345838978,-1026.80128784,0.00029998,2]
[311706707,1705345838987,-266.38915451,0.00029998,2]
[311706709,1705345838996,-677.30340506,0.00029998,2]
[311706711,1705345839006,-13004.32428539,0.00029998,2]
[311706713,1705345839015,-15888.77749284,0.00029998,2]
[311706715,1705345839024,-163.7019,0.00029998,2]
[311706717,1705345839034,-219.49850361,0.00029999,2]
[311706719,1705345839043,-1299.26146621,0.00029999,2]
[311706721,1705345839053,-226.3364049,0.00029999,2]
[311706723,1705345839062,-500.0,0.00029999,2]
[311706725,1705345839071,-500.0,0.00029999,2]
[311706727,1705345839080,-500.0,0.00029999,2]
[311706729,1705345839090,-334.50251997,0.00029999,2]
[311706731,1705345839100,-544.22317858,0.00029999,2]
[311706733,1705345839109,-500.0,0.00029999,2]
[311706735,1705345839119,-500.0,0.00029999,2]
[311706737,1705345839128,-500.0,0.00029999,2]
[311706739,1705345839138,-191.04341295,0.00029999,2]
[311706741,1705345839146,-500.0,0.00029999,2]
[311706743,1705345839156,-500.0,0.00029999,2]
[311706745,1705345839165,-500.0,0.00029999,2]
[311706747,1705345839174,-500.0,0.00029999,2]
[311706749,1705345839183,-395.85463005,0.00029999,2]
[311706751,1705345839193,-500.0,0.00029999,2]
[311706753,1705345839204,-500.0,0.00029999,2]
[311706755,1705345839214,-500.0,0.00029999,2]
[311706757,1705345839222,-418.06874326,0.00029999,2]
[311706759,1705345839231,-500.0,0.00029999,2]
[311706761,1705345839240,-500.0,0.00029999,2]
[311706763,1705345839250,-500.0,0.00029999,2]
[311706765,1705345839259,-415.1308648,0.00029999,2]
[311706767,1705345839268,-500.0,0.00029999,2]
[311706769,1705345839278,-500.0,0.00029999,2]
[311706771,1705345839286,-500.0,0.00029999,2]
[311706773,1705345839296,-500.0,0.00029999,2]
[311706775,1705345839305,-400.0,0.00029999,2]
[311706777,1705345839314,-500.0,0.00029999,2]
[311706779,1705345839324,-500.0,0.00029999,2]
[311706781,1705345839333,-500.0,0.00029999,2]
[311706783,1705345839342,-500.0,0.00029999,2]
[311706785,1705345839351,-500.0,0.00029999,2]
[311706787,1705345839361,-255.26099493,0.00029999,2]
[311706789,1705345839370,-500.0,0.00029999,2]
[311706791,1705345839379,-500.0,0.00029999,2]
[311706793,1705345839388,-500.0,0.00029999,2]
[311706795,1705345839398,-500.0,0.00029999,2]
[311706797,1705345839407,-217.68927142,0.00029999,2]
[311706799,1705345839416,-499.99999999,0.00029999,2]
[311706801,1705345839425,-414.62604776,0.00029999,2]
[311706803,1705345839434,-500.0,0.00029999,2]
[311706805,1705345839443,-500.0,0.00029999,2]
[311706807,1705345839454,-500.0,0.00029999,2]
[311706809,1705345839463,-500.0,0.00029999,2]
[311706811,1705345839472,-500.0,0.00029999,2]
[311706813,1705345839481,-500.0,0.00029999,2]
[311706815,1705345839492,-500.0,0.00029999,2]
[311706817,1705345839501,-1196.10521571,0.00029999,2]
[311706819,1705345839510,-1196.10521571,0.00029999,2]
[311706821,1705345839520,-500.0,0.00029999,2]
[311706823,1705345839529,-1196.10521571,0.00029999,2]
[311706825,1705345839538,-500.0,0.00029999,2]
[311706827,1705345839548,-1196.10521571,0.00029999,2]
[311706829,1705345839557,-1196.10521571,0.00029999,2]
[311706831,1705345839567,-274.16423233,0.00029999,2]
[311706833,1705345839576,-1196.10521571,0.00029999,2]
[311706835,1705345839585,-1196.10521571,0.00029999,2]
[311706837,1705345839594,-1196.10521571,0.00029999,2]
[311706839,1705345839603,-1196.10521571,0.00029999,2]
[311706841,1705345839612,-500.0,0.00029999,2]
[311706843,1705345839621,-500.0,0.00029999,2]
[311706845,1705345839630,-1196.10521571,0.00029999,2]
[311706847,1705345839639,-1196.10521571,0.00029999,2]
[311706849,1705345839648,-1196.10521571,0.00029999,2]
[311706851,1705345839657,-1196.10521571,0.00029999,2]
[311706852,1705345839666,-500.0,0.00029999,2]
[311706855,1705345839675,-1196.10521571,0.00029999,2]
[311706856,1705345839684,-500.0,0.00029999,2]
[311706858,1705345839693,-500.0,0.00029999,2]
[311706860,1705345839704,-1196.10521571,0.00029999,2]
[311706862,1705345839713,-500.0,0.00029999,2]
[311706864,1705345839722,-500.0,0.00029999,2]
[311706866,1705345839731,-1196.10521571,0.00029999,2]
[311706868,1705345839740,-1196.10521571,0.00029999,2]
[311706870,1705345839749,-500.0,0.00029999,2]
[311706872,1705345839759,-1196.10521571,0.00029999,2]
[311706874,1705345839768,-1196.10521571,0.00029999,2]
[311706877,1705345839777,-1196.10521571,0.00029999,2]
[311706878,1705345839787,-1196.10521571,0.00029999,2]
[311706881,1705345839796,-1196.10521571,0.00029999,2]
[311706883,1705345839805,-1196.10521571,0.00029999,2]
[311706885,1705345839814,-1196.10521571,0.00029999,2]
[311706886,1705345839823,-991.46898354,0.00029999,2]
[311706888,1705345839832,-991.46898354,0.00029999,2]
[311706890,1705345839841,-991.46898354,0.00029999,2]
[311706892,1705345839850,-991.46898354,0.00029999,2]
[311706894,1705345839858,-991.46898354,0.00029999,2]
[311706896,1705345839867,-991.46898354,0.00029999,2]
[311706899,1705345839876,-991.46898354,0.00029999,2]
[311706902,1705345839885,-1735.07072117,0.00029999,2]
[311706905,1705345839894,-630.95530693,0.0003,2]
[311706908,1705345839903,-6188.54002624,0.0003,2]
[311706911,1705345839911,-48372.63820114,0.0003,2]
[311706914,1705345839920,-2190.506869,0.0003,2]
[311706916,1705345839930,-177377.24081263,0.0003,2]
[311706919,1705345839943,-1750.03357533,0.0003,2]
[311706926,1705345839972,-238295.96649179,0.0003,2]
[311706929,1705345839982,-282.83454941,0.0003,3]
[311706932,1705345839990,-297.8809135,0.0003,4]
[311706935,1705345839999,-155.0,0.0003,4]
[311706938,1705345840008,-155.41682727,0.0003,4]
[311706941,1705345840017,-1413.42859915,0.0003,2]
[311706944,1705345840026,-681.78811125,0.0003,3]
[311706947,1705345840035,-463.46661998,0.0003,4]
[311706950,1705345840044,-3757.35908,0.0003,2]
[311706953,1705345840053,-9979.0020998,0.0003,2]
[311706956,1705345840062,-212.0,0.0003,2]
[311706959,1705345840072,-200.0,0.000301,4]
[311706962,1705345840080,-65757.14137506,0.0003013,2]
[311706965,1705345840089,-504.96181461,0.00030135,4]
[311706968,1705345840099,-500.0,0.00030135,4]
[311706971,1705345840109,-500.0,0.00030135,4]
[311706974,1705345840118,-500.0,0.00030135,4]
[311706977,1705345840128,-500.0,0.00030135,4]
[311706979,1705345840137,-500.0,0.00030135,4]
[311706981,1705345840147,-232.72962817,0.00030135,4]
[311706984,1705345840156,-151.0,0.00030136,2]
[311706986,1705345840164,-159.323196,0.00030136,2]
[311706988,1705345840174,-2783.524376,0.00030136,2]
[311706990,1705345840183,-2783.524376,0.00030136,2]
[311706992,1705345840193,-2783.524376,0.00030136,2]
[311707003,1705345840282,-2783.524376,0.00030136,2]
[311707005,1705345840291,-500.0,0.00030136,2]
[311707007,1705345840301,-500.0,0.00030136,2]
[311707009,1705345840311,-502.04178712,0.00030136,2]
[311707011,1705345840319,-500.0,0.00030136,2]
[311707013,1705345840329,-500.0,0.00030136,2]
[311707015,1705345840338,-500.0,0.00030136,2]
[311707017,1705345840350,-505.46016251,0.00030136,2]
[311707019,1705345840359,-500.0,0.00030136,2]
[311707021,1705345840368,-500.0,0.00030136,2]
[311707023,1705345840379,-500.0,0.00030136,2]
[311707025,1705345840388,-500.0,0.00030136,2]
[311707027,1705345840396,-500.76884476,0.00030136,2]
[311707029,1705345840405,-500.0,0.00030136,2]
[311707031,1705345840414,-505.17466226,0.00030136,2]
[311707033,1705345840425,-533.92341691,0.00030136,2]
[311707035,1705345840436,-505.6647202,0.00030136,2]
[311707037,1705345840446,-500.0,0.00030136,2]
[311707039,1705345840456,-500.0,0.00030136,2]
[311707041,1705345840465,-500.0,0.00030136,2]
[311707043,1705345840474,-500.0,0.00030136,2]
[311707045,1705345840483,-500.0,0.00030136,2]
[311707047,1705345840492,-503.76042726,0.00030136,2]
[311707049,1705345840501,-506.32586647,0.00030136,2]
[311707051,1705345840512,-500.69084539,0.00030136,2]
[311707053,1705345840521,-500.0,0.00030136,2]
[311707055,1705345840530,-500.0,0.00030136,2]
[311707057,1705345840538,-313.9541795,0.00030136,2]
[311707059,1705345840547,-500.0,0.00030136,2]
[311707061,1705345840557,-500.0,0.00030136,2]
[311707063,1705345840566,-202.46857956,0.00030136,2]
[311707065,1705345840575,-500.0,0.00030136,2]
[311707067,1705345840585,-500.0,0.00030136,2]
[311707069,1705345840594,-500.0,0.00030136,2]
[311707071,1705345840603,-500.0,0.00030136,2]
[311707073,1705345840614,-500.0,0.00030136,2]
[311707075,1705345840623,-254.4993865,0.00030136,2]
[311707077,1705345840632,-500.0,0.00030136,2]
[311707079,1705345840641,-500.0,0.00030136,2]
[311707081,1705345840650,-500.0,0.00030136,2]
[311707083,1705345840659,-500.44765468,0.00030136,2]
[311707085,1705345840668,-150.0,0.00030136,2]
[311707087,1705345840677,-500.0,0.00030136,2]
[311707089,1705345840687,-500.0,0.00030136,2]
[311707091,1705345840697,-500.0,0.00030136,2]
[311707093,1705345840706,-500.0,0.00030136,2]
[311707095,1705345840716,-500.0,0.00030136,2]
[311707097,1705345840725,-599.44,0.00030136,2]
[311707099,1705345840734,-500.0,0.00030136,2]
[311707101,1705345840743,-500.0,0.00030136,2]
[311707103,1705345840753,-500.80020563,0.00030136,2]
[311707105,1705345840762,-500.0,0.00030136,2]
[311707107,1705345840772,-500.0,0.00030136,2]
[311707109,1705345840780,-500.0,0.00030136,2]
[311707111,1705345840789,-256.92126022,0.00030136,2]
[311707113,1705345840799,-500.0,0.00030136,2]
[311707115,1705345840808,-500.23364505,0.00030136,2]
[311707117,1705345840817,-500.0,0.00030136,2]
[311707119,1705345840827,-500.0,0.00030136,2]
[311707121,1705345840836,-502.53967213,0.00030136,2]
[311707123,1705345840845,-512.41301664,0.00030136,2]
[311707125,1705345840855,-163.83594978,0.00030136,2]
[311707127,1705345840863,-500.0,0.00030136,2]
[311707129,1705345840872,-500.0,0.00030136,2]
[311707131,1705345840882,-500.0,0.00030136,2]
[311707133,1705345840890,-500.0,0.00030136,2]
[311707135,1705345840899,-500.0,0.00030136,2]
[311707137,1705345840909,-616.84550266,0.00030136,2]
[311707139,1705345840918,-506.41801766,0.00030136,2]
[311707140,1705345840927,-384.57471689,0.00030136,2]
[311707142,1705345840937,-1000.0,0.00030136,2]
[311707144,1705345840946,-500.0,0.00030136,2]
[311707146,1705345840955,-500.0,0.00030136,2]
[311707148,1705345840965,-500.0,0.00030136,2]
[311707150,1705345840974,-548.22378841,0.00030136,2]
[311707152,1705345840983,-500.0,0.00030136,2]
[311707154,1705345840993,-500.0,0.00030136,2]
[311707156,1705345841003,-500.0,0.00030136,2]
[311707158,1705345841013,-500.0,0.00030136,2]
[311707160,1705345841023,-602.05912595,0.00030136,2]
[311707162,1705345841033,-602.94191662,0.00030136,2]
[311707164,1705345841042,-598.53355378,0.00030136,2]
[311707166,1705345841051,-500.0,0.00030136,2]
[311707168,1705345841061,-220.10757658,0.00030136,2]
[311707170,1705345841070,-500.0,0.00030136,2]
[311707172,1705345841079,-508.51230986,0.00030136,2]
[311707174,1705345841088,-501.71054968,0.00030136,2]
[311707176,1705345841097,-537.38332628,0.00030136,2]
[311707178,1705345841107,-500.0,0.00030136,2]
[311707180,1705345841115,-500.0,0.00030136,2]
[311707182,1705345841124,-919.23,0.00030136,2]
[311707184,1705345841133,-500.0,0.00030136,2]
[311707186,1705345841142,-232.9672703,0.00030136,2]
[311707188,1705345841151,-500.0,0.00030136,2]
[311707190,1705345841160,-1000.0,0.00030136,2]
[311707192,1705345841169,-501.49196383,0.00030136,2]
[311707194,1705345841179,-500.0,0.00030136,2]
[311707196,1705345841188,-157.72893197,0.00030136,2]
[311707198,1705345841198,-500.0,0.00030136,2]
[311707201,1705345841207,-500.0,0.00030136,2]
[311707203,1705345841218,-355.51433788,0.00030136,2]
[311707205,1705345841227,-500.0,0.00030136,2]
[311707206,1705345841236,-611.17086737,0.00030136,2]
[311707207,1705345841245,-376.9775158,0.00030136,2]
[311707208,1705345841255,-500.0,0.00030136,2]
[311707209,1705345841264,-2537.08,0.00030136,2]
[311707210,1705345841273,-500.0,0.00030136,2]
[311707211,1705345841282,-473.89489476,0.00030136,2]
[311707212,1705345841291,-502.86947802,0.00030136,2]
[311707213,1705345841301,-500.0,0.00030136,2]
[311707214,1705345841310,-163.18093818,0.00030136,2]
[311707215,1705345841319,-500.0,0.00030136,2]
[311707216,1705345841328,-527.20807009,0.00030136,2]
[311707217,1705345841337,-501.11966255,0.00030136,2]
[311707218,1705345841346,-500.0,0.00030136,2]
[311707219,1705345841355,-500.0,0.00030136,2]
[311707220,1705345841364,-500.0,0.00030136,2]
[311707221,1705345841373,-547.11543908,0.00030136,2]